Workbook

Sheet Cover
C2: CRC : Retails Minus tariffs for cable wholesale access
C4: Annex to the CRC communication of 11/12/2013 concerning setting wholesale access prices to cable networks.
C6: This file is an annexe to the CRC communication of 11/12/2013. The purpose of this file is to present in details the calculations for setting wholesale access prices to cable networks based on retail offers from cable operators and minus values from the CRC decisions.
C8: Usage : (1) select some operator's sheet, (2) fill in or update green tables if needed, (3) select retail offer in cell C52. The wholesale tariff is then computed in the orange table, the result is given in cell D98.
C9: The "Overview" sheets makes an overview of all different offers for each operator. The button on the bottom of the sheet runs a macro that computes the tariffs for each offer and updates the overview table.
B11: Version : | C11: 1.0
B12: Date : | C12: 2013-12-11
B15: Minus Values :
C16: Numericable
B17: Analog TV : | C17: 0.2
B18: Digital TV : | C18: 0.2
B19: Pack : | C19: 0.2
C20: Telenet
B21: Analog TV : | C21: 0.3
B22: Digital TV : | C22: 0.3
B23: Pack : | C23: 0.23
C24: Voo
B25: Analog TV : | C25: 0.3
B26: Digital TV : | C26: 0.3
B27: Pack : | C27: 0.23
C28: Source : CRC Decision of 11/12/2013
B30: Contacts :
C31: CSA
C32: Boulevard de l'Impératrice, 13
C33: B - 1000 Bruxelles
C34: http://www.csa.be
C36: Bernardo Herman, directeur service "distributeurs et opérateurs"
C37: Tel. +32 2 349 58 83
C38: Fax. +32 2 349 58 97
C39: E-Mail : bernardo.herman@csa.be
C41: Julien Jost, conseiller service "distributeurs et opérateurs"
C42: Tel. +32 2 349 58 70
C43: Fax. +32 2 349 58 97
C44: E-Mail : julien.jost@csa.be

Sheet Numericable
A1: Numericable
A3: Retail offers : | K3: Offer characteristics : | M3: Analog TV | O3: Digital TV | S3: Broadband | V3: Telephony | X3: Extras
B4: Id. | C4: Name | D4: Type | E4: Retail price (VAT incl.) | F4: Retail price (VAT excl.) | G4: Remark | H4: Link | I4: Legend : | J4: Label / Name | L4: Name | M4: Analog TV | N4: #Channels | O4: Digital TV | P4: #Channels | Q4: #HD Channels | R4: Decoder | S4: Broadband | T4: Bitrate Dn[/Up] | U4: Quota | V4: Telephony | W4: Options | X4: -
B5: =IF(C5<>"-",1,"") -> 1 | C5: Télédistribution | D5: Analog TV | E5: 17.81 | F5: =IF(E5<>"",E5/1.21,"") -> 14.71900826 | H5: Link | J5: Computation | L5: =C5 -> Télédistribution | M5: X | N5: 25 | O5: - | P5: - | Q5: - | R5: - | S5: - | T5: - | U5: - | V5: - | W5: - | X5: -
B6: =IF(C6<>"-",B5+1,"") -> 2 | C6: TV Plus (digital) | D6: Digital TV | E6: =21.9+6 -> 27.9 | F6: =IF(E6<>"",E6/1.21,"") -> 23.05785124 | G6: Incl. HD Decoder (6€) | H6: Link | J6: Required Input | L6: =C6 -> TV Plus (digital) | M6: X | N6: 25 | O6: X | P6: 130 | Q6: 17 | R6: HD/HDD | S6: - | T6: - | U6: - | V6: - | W6: - | X6: -
B7: 3 | C7: Duo TV+Web | D7: Dual play | E7: 39.9 | F7: 32.97520661 | G7: TV Start + décodeur HD PVR + BB50M 100G | H7: Link | J7: Optional Input | L7: Duo TV+Web | M7: X | N7: 25 | O7: X | P7: 100 | Q7: 12 | R7: HD/HDD | S7: X | T7: 50M/2.5M | U7: 100G | V7: - | W7: - | X7: -
B8: 4 | C8: Triple Play Extra | D8: Triple play | E8: 55.9 | F8: 46.19834711 | G8: TV Plus + Tél. extra & voisins + BB 100M illimité + Box 160 | H8: Link | J8: Selection | L8: Triple Play Extra | M8: X | N8: 25 | O8: X | P8: 130 | Q8: 17 | R8: Box 160 + HD | S8: X | T8: 100M/5M | U8: Illimité | V8: X | W8: Extra + Voisins | X8: -
B9: 5 | C9: Triple Play Max | D9: Triple play | E9: 69.9 | F9: 57.76859504 | G9: TV Plus & Bouquet Premium + Tél. extra & monde + BB 200M illimité + Box 320 | H9: Link | J9: Output | L9: Triple Play Max | M9: X | N9: 25 | O9: X | P9: 130 | Q9: 17 | R9: Box 320 + HD | S9: X | T9: 200M/8M | U9: Illimité | V9: X | W9: Extra + Monde | X9: Mini Premium
C10: - | L10: -
C11: - | L11: -
C12: - | L12: -
C13: - | L13: -
C14: - | L14: -
C15: - | L15: -
C16: - | L16: -
C17: This table includes retail offers that are used as starting point for setting wholesale prices.
A18: Standalone components : | L18: Packs composition : | M18: This table maps "packed" retail offers to standalone components.
B19: Id. | C19: Name | D19: Type | E19: Retail price (VAT incl.) | F19: Retail price (VAT excl.) | G19: Remark | H19: Discount | I19: Excluded | J19: Link | M19: =TRANSPOSE(C5:C16) -> Télédistribution | N19: TV Plus (digital) | O19: Duo TV+Web | P19: Triple Play Extra | Q19: Triple Play Max | R19: - | S19: - | T19: - | U19: - | V19: - | W19: - | X19: -
B20: =IF(C20<>"-",1,"") -> 1 | C20: Cable access (rights incl.) | D20: Analog TV | E20: 17.81 | F20: =IF(E20<>"",E20/1.21,"") -> 14.71900826 | H20: 1 | I20: 0 | J20: Link | L20: =C20 -> Cable access (rights incl.) | M20: 0 | N20: 0 | O20: 0 | P20: 0 | Q20: 0
B21: =IF(C21<>"-",B20+1,"") -> 2 | C21: Cable access (rights excl.) | D21: Analog TV | E21: =E20-E22 -> 13.81 | F21: =IF(E21<>"",E21/1.21,"") -> 11.41322314 | H21: 1 | I21: 0 | J21: Link | L21: =C21 -> Cable access (rights excl.) | M21: 1 | N21: 0 | O21: 0 | P21: 0 | Q21: 0
B22: 3 | C22: TV Rights (analog) | D22: TV Rights | E22: 4 | F22: 3.305785124 | H22: 0 | I22: 1 | L22: TV Rights (analog) | M22: 1 | N22: 0 | O22: 0 | P22: 0 | Q22: 0
B23: 4 | C23: TV Plus (rights incl.) | D23: Digital TV | E23: 21.9 | F23: 18.09917355 | H23: 1 | I23: 0 | J23: Link | L23: TV Plus (rights incl.) | M23: 0 | N23: 0 | O23: 0 | P23: 0 | Q23: 0
B24: 5 | C24: TV Plus (rights excl.) | D24: Digital TV | E24: =E23-E25 -> 17 | F24: 14.04958678 | H24: 1 | I24: 0 | J24: Link | L24: TV Plus (rights excl.) | M24: 0 | N24: 1 | O24: 1 | P24: 1 | Q24: 1
B25: 6 | C25: TV Rights (digital) | D25: TV Rights | E25: 4.9 | F25: 4.049586777 | H25: 0 | I25: 1 | L25: TV Rights (digital) | M25: 0 | N25: 1 | O25: 1 | P25: 1 | Q25: 1
B26: 7 | C26: Cablebox HD | D26: Decoder | E26: 6 | F26: 4.958677686 | H26: 1 | I26: 0 | J26: Link | L26: Cablebox HD | M26: 0 | N26: 0 | O26: 0 | P26: 1 | Q26: 1
B27: 8 | C27: Cablebox HD + HDD | D27: Decoder | E27: 7 | F27: 5.785123967 | H27: 1 | I27: 0 | J27: Link | L27: Cablebox HD + HDD | M27: 0 | N27: 1 | O27: 1 | P27: 0 | Q27: 0
B28: 9 | C28: La Box 160 | D28: Decoder | E28: 7 | F28: 5.785123967 | H28: 1 | I28: 0 | J28: Link | L28: La Box 160 | M28: 0 | N28: 0 | O28: 0 | P28: 1 | Q28: 0
B29: 10 | C29: La Box 320 | D29: Decoder | E29: 10 | F29: 8.26446281 | H29: 1 | I29: 0 | J29: Link | L29: La Box 320 | M29: 0 | N29: 0 | O29: 0 | P29: 0 | Q29: 1
B30: 11 | C30: Internet 50M | D30: Broadband | E30: 29.9 | F30: 24.7107438 | G30: Vol. limité 100G | H30: 1 | I30: 0 | J30: Link | L30: Internet 50M | M30: 0 | N30: 0 | O30: 1 | P30: 0 | Q30: 0
B31: 12 | C31: Internet 100M | D31: Broadband | E31: 49.9 | F31: 41.23966942 | G31: Vol. limité 150G | H31: 1 | I31: 0 | J31: Link | L31: Internet 100M | M31: 0 | N31: 0 | O31: 0 | P31: 1 | Q31: 0
B32: 13 | C32: Internet 200M | D32: Broadband | E32: 59.9 | F32: 49.50413223 | G32: Incl. volume illimité | H32: 1 | I32: 0 | J32: Link | L32: Internet 200M | M32: 0 | N32: 0 | O32: 0 | P32: 0 | Q32: 1
B33: 14 | C33: Internet - Option illimité | D33: Broadband | E33: 9.9 | F33: 8.181818182 | G33: Option volume illimité | H33: 1 | I33: 0 | J33: Link | L33: Internet - Option illimité | M33: 0 | N33: 0 | O33: 0 | P33: 1 | Q33: 0
B34: 15 | C34: Téléphone Start | D34: Telephony | E34: 12.9 | F34: 10.66115702 | G34: Illimité fixe BE 24/24 | H34: 1 | I34: 1 | J34: Link | L34: Téléphone Start | M34: 0 | N34: 0 | O34: 0 | P34: 0 | Q34: 0
B35: 16 | C35: Téléphone Extra | D35: Telephony | E35: 19.9 | F35: 16.44628099 | G35: Illimité fixe BE 24/24 & Mobile BE soirs & week-ends | H35: 1 | I35: 1 | J35: Link | L35: Téléphone Extra | M35: 0 | N35: 0 | O35: 0 | P35: 1 | Q35: 1
B36: 17 | C36: Tél. - Option "Voisins, Turquie, Maroc" | D36: Telephony | E36: 6.9 | F36: 5.702479339 | G36: Illimité fixe "Voisins, Turquie, Maroc" soirs & week-ends | H36: 1 | I36: 1 | J36: Link | L36: Tél. - Option "Voisins, Turquie, Maroc" | M36: 0 | N36: 0 | O36: 0 | P36: 1 | Q36: 0
B37: 18 | C37: Tél. - Option "Monde illimité" | D37: Telephony | E37: 11.9 | F37: 9.834710744 | G37: Illimité fixe world 24/24 | H37: 1 | I37: 1 | J37: Link | L37: Tél. - Option "Monde illimité" | M37: 0 | N37: 0 | O37: 0 | P37: 0 | Q37: 1
B38: 19 | C38: TV Bouquet "Mini-premium" | D38: Extra | E38: 9.9 | F38: 8.181818182 | H38: 1 | I38: 1 | J38: Link | L38: TV Bouquet "Mini-premium" | M38: 0 | N38: 0 | O38: 0 | P38: 0 | Q38: 1
C39: - | L39: -
C40: - | L40: -
C41: - | L41: -
C42: - | L42: -
C43: - | L43: -
C44: - | L44: -
C45: This table includes standalone retail offers that are used as components for building multiple play offers. | L45: Sum of standalone prices (VAT incl.) : | M45: =SUMPRODUCT(M20:M44,$E$20:$E$44) -> 17.81 | N45: =SUMPRODUCT(N20:N44,$E$20:$E$44) -> 28.9 | O45: 58.8 | P45: 121.5 | Q45: 139.5 | R45: 0 | S45: 0 | T45: 0 | U45: 0 | V45: 0 | W45: 0 | X45: 0 | Y45: Sum of standalone prices.
C46: The "Discount" column indicates whether a discount can be applied to each component in case of a bundled offer. | L46: "Packed" retail price (VAT incl.) : | M46: =TRANSPOSE(E5:E16) -> 17.81 | N46: 27.9 | O46: 39.9 | P46: 55.9 | Q46: 69.9 | R46: 0 | S46: 0 | T46: 0 | U46: 0 | V46: 0 | W46: 0 | X46: 0 | Y46: Price of the retail offer.
C47: As for now, only TV Rights are not discounted. | L47: Abolute discount (VAT incl.) : | M47: =M45-M46 -> 0 | N47: =N45-N46 -> 1 | O47: 18.9 | P47: 65.6 | Q47: 69.6 | R47: 0 | S47: 0 | T47: 0 | U47: 0 | V47: 0 | W47: 0 | X47: 0 | Y47: Absolute discount in case of "packed" offers.
C48: The "Excluded" column indicates whether each item must be excluded from the base to which the minus applies. | L48: Sum of standalone prices (VAT incl.) for which discount applies : | M48: =SUMPRODUCT(M20:M44,$E$20:$E$44,$H$20:$H$44) -> 13.81 | N48: =SUMPRODUCT(N20:N44,$E$20:$E$44,$H$20:$H$44) -> 24 | O48: 53.9 | P48: 116.6 | Q48: 134.6 | R48: 0 | S48: 0 | T48: 0 | U48: 0 | V48: 0 | W48: 0 | X48: 0 | Y48: Sum of standalone prices for items that cannot be discounted.
C49: Typical "Excludable" items are TV Rights, Telephony in case of 3-Play or valued Extras like Voo-Foot. | L49: Relative discount (wrt. "discountable" items) : | M49: =IF(M48<>0,-M47/M48,"") -> 0 | N49: =IF(N48<>0,-N47/N48,"") -> -0.04166666667 | O49: -0.3506493506 | P49: -0.5626072041 | Q49: -0.5170876672 | Y49: Relative discount with respect to stand alone prices for items that cannot be discounted.
A51: Pack tariff breakdown :
B52: Select offer : | C52: Télédistribution | D52: Choose retail offer
C54: Component | D54: Type | E54: Standalone price (VAT incl.) | F54: Discount | G54: Discounted price (VAT incl.) | H54: Weight
C55: =IF(INDEX(M20:X20,1,MATCH($C$52,$M$19:$X$19,0)),C20,"") ->  | D55: =IF(C55<>"",INDEX($D$20:$J$44,MATCH(C55,$C$20:$C$44,0),1),"") ->  | E55: =IF(C55<>"",INDEX($D$20:$J$44,MATCH(C55,$C$20:$C$44,0),2),"") ->  | F55: =IF(C55<>"",INDEX($M$49:$X$49,1,MATCH($C$52,$M$19:$X$19,0))*INDEX($D$20:$J$44,MATCH(C55,$C$20:$C$44,0),5),"") ->  | G55: =IF(C55<>"",E55*(1+F55),"") ->  | H55: =IF(C55<>"",G55/SUM($G$55:$G$79),"") -> 
C56: =IF(INDEX(M21:X21,1,MATCH($C$52,$M$19:$X$19,0)),C21,"") -> Cable access (rights excl.) | D56: =IF(C56<>"",INDEX($D$20:$J$44,MATCH(C56,$C$20:$C$44,0),1),"") -> Analog TV | E56: =IF(C56<>"",INDEX($D$20:$J$44,MATCH(C56,$C$20:$C$44,0),2),"") -> 13.81 | F56: =IF(C56<>"",INDEX($M$49:$X$49,1,MATCH($C$52,$M$19:$X$19,0))*INDEX($D$20:$J$44,MATCH(C56,$C$20:$C$44,0),5),"") -> 0 | G56: =IF(C56<>"",E56*(1+F56),"") -> 13.81 | H56: =IF(C56<>"",G56/SUM($G$55:$G$79),"") -> 0.7754070747
C57: TV Rights (analog) | D57: TV Rights | E57: 4 | F57: 0 | G57: 4 | H57: 0.2245929253
D80: Total : | E80: =SUM(E55:E79) -> 17.81 | G80: =SUM(G55:G79) -> 17.81 | H80: =SUM(H55:H79) -> 1
D81: Share of TV, Broadband and TV Rights (ie. exclude "Telephony" and "Extra") | E81: =SUM(E55:E79)-SUMIF(D55:D79,"=Extra",E55:E79)-SUMIF(D55:D79,"=Telephony",E55:E79) -> 17.81 | G81: =SUM(G55:G79)-SUMIF(D55:D79,"=Extra",G55:G79)-SUMIF(D55:D79,"=Telephony",G55:G79) -> 17.81 | H81: =SUM(H55:H79)-SUMIF(D55:D79,"=Extra",H55:H79)-SUMIF(D55:D79,"=Telephony",H55:H79) -> 1
C82: This table break downs the retail tariffs in components and computes the weight of each component as a percentage of the "packed" retail price. It applies the "pack" discount to items that can be discounted.
A84: Wholesale tariff :
B85: Offer : | C85: =C52 -> Télédistribution
B86: Offer type : | C86: =INDEX($D$5:$D$16,MATCH(C85,$C$5:$C$16,0)) -> Analog TV
B87: Selected Minus : | C87: =INDEX(offer.types.minus,MATCH(C86,offer.types),1) -> Analog TV
B88: Minus Value : | C88: =INDEX(minus.val.numericable,MATCH(C87,minus.name)) -> 0.2
C90: Pack Retail price (VAT incl.) | D90: =INDEX(M46:X46,1,MATCH($C$52,$M$19:$X$19,0)) -> 17.81 | E90: Retail price of the offer (VAT incl.).
C91: Minus VAT (21%) | D91: =D90/1.21-D90 -> -3.090991736
C92: Pack Retail price (VAT excl.) | D92: =SUM(D90:D91) -> 14.71900826
C93: Share of (TV+BB+Rights) | D93: =H81 -> 1 | E93: Share of components that are not "Telephony" nor "Extra" (ie. that can be excluded except TV Rights that are deducted below).
C94: 2P equiv. Pack Retail price (VAT excl.) | D94: =D92*D93 -> 14.71900826 | E94: Retail price of an equivalent "2-Play" pack in case some components must be exluded.
C95: Minus TV Rights (TVA excl.) | D95: =-SUMIF(D55:D79,"TV Rights",G55:G79)/1.21 -> -3.305785124
C96: Minus application base (VAT excl.) | D96: =SUM(D94:D95) -> 11.41322314
C97: Minus "Minus" | D97: =-C88 -> -0.2
C98: Wholesale tariff (VAT excl.) | D98: =D96*(1+D97) -> 9.130578512 | E98: Wholesale price (VAT excl.).

Sheet Telenet
A1: Telenet
A3: Retail offers : | K3: Offer characteristics : | M3: Analog TV | O3: Digital TV | S3: Broadband | V3: Telephony | X3: Extras
B4: Id. | C4: Name | D4: Type | E4: Retail price (VAT incl.) | F4: Retail price (VAT excl.) | G4: Remark | H4: Link | I4: Legend : | J4: Label / Name | L4: Name | M4: Analog TV | N4: #Channels | O4: Digital TV | P4: #Channels | Q4: #HD Channels | R4: Decoder | S4: Broadband | T4: Bitrate Dn[/Up] | U4: Quota | V4: Telephony | W4: Options | X4: -
B5: =IF(C5<>"-",1,"") -> 1 | C5: TV Analogique | D5: Analog TV | E5: 15.2 | F5: =IF(E5<>"",E5/1.21,"") -> 12.56198347 | H5: Link | J5: Computation | L5: =C5 -> TV Analogique | M5: X | N5: ? | O5: - | P5: - | Q5: - | R5: - | S5: - | T5: - | U5: - | V5: - | W5: - | X5: -
B6: =IF(C6<>"-",B5+1,"") -> 2 | C6: TV Digitale | D6: Digital TV | E6: 23.4 | F6: =IF(E6<>"",E6/1.21,"") -> 19.33884298 | G6: Price incl. decoder (8,20€) | H6: Link | J6: Required Input | L6: =C6 -> TV Digitale | M6: X | N6: ? | O6: X | P6: 75 | Q6: ? | R6: HD Digicorder | S6: - | T6: - | U6: - | V6: - | W6: - | X6: -
B7: =IF(C7<>"-",B6+1,"") -> 3 | C7: Whop | D7: Triple play | E7: =53.25+8.2 -> 61.45 | F7: 50.78512397 | G7: Price incl. decoder (8,20€) | H7: Link | J7: Optional Input | L7: Whop | M7: X | N7: ? | O7: X | P7: 75 | Q7: ? | R7: HD Digicorder | S7: X | T7: 60M/4M | U7: 100G | V7: X | W7: FreePhone EU | X7: -
B8: =IF(C8<>"-",B7+1,"") -> 4 | C8: Whoppa | D8: Triple play | E8: =63.5+8.2 -> 71.7 | F8: 59.25619835 | G8: Price incl. decoder (8,20€) | H8: Link | J8: Selection | L8: Whoppa | M8: X | N8: ? | O8: X | P8: 75 | Q8: ? | R8: HD Digicorder | S8: X | T8: 120M/6M | U8: Illimité | V8: X | W8: FreePhone EU | X8: -
B9: =IF(C9<>"-",B8+1,"") ->  | C9: - | J9: Output | L9: -
B10: =IF(C10<>"-",B9+1,"") ->  | C10: - | L10: -
B11: =IF(C11<>"-",B10+1,"") ->  | C11: - | L11: -
C12: - | L12: -
C13: - | L13: -
C14: - | L14: -
C15: - | L15: -
C16: - | L16: -
C17: This table includes retail offers that are used as starting point for setting wholesale prices.
A18: Standalone components : | L18: Packs composition : | M18: This table maps "packed" retail offers to standalone components.
B19: Id. | C19: Name | D19: Type | E19: Retail price (VAT incl.) | F19: Retail price (VAT excl.) | G19: Remark | H19: Discount | I19: Excluded | J19: Link | M19: =TRANSPOSE(C5:C16) -> TV Analogique | N19: TV Digitale | O19: Whop | P19: Whoppa | Q19: - | R19: - | S19: - | T19: - | U19: - | V19: - | W19: - | X19: -
B20: =IF(C20<>"-",1,"") -> 1 | C20: Cable access (rights incl.) | D20: Analog TV | E20: 15.2 | F20: =IF(E20<>"",E20/1.21,"") -> 12.56198347 | H20: 1 | I20: 0 | J20: Link | L20: =C20 -> Cable access (rights incl.) | M20: 0 | N20: 0 | O20: 0 | P20: 0
B21: =IF(C21<>"-",B20+1,"") -> 2 | C21: Cable access (rights excl.) | D21: Analog TV | E21: =E20-E22 -> 12.02 | F21: =IF(E21<>"",E21/1.21,"") -> 9.933884298 | H21: 1 | I21: 0 | J21: Link | L21: =C21 -> Cable access (rights excl.) | M21: 1 | N21: 1 | O21: 1 | P21: 1
B22: =IF(C22<>"-",B21+1,"") -> 3 | C22: TV Rights | D22: TV Rights | E22: 3.18 | F22: 2.628099174 | H22: 0 | I22: 1 | J22: Link | L22: TV Rights | M22: 1 | N22: 1 | O22: 1 | P22: 1
B23: 4 | C23: HD Digicorder | D23: Decoder | E23: 8.2 | F23: 6.776859504 | H23: 1 | I23: 0 | J23: Link | L23: HD Digicorder | M23: 0 | N23: 1 | O23: 1 | P23: 1
B24: 5 | C24: Internet 60 | D24: Broadband | E24: 46.5 | F24: 38.42975207 | H24: 1 | I24: 0 | J24: Link | L24: Internet 60 | M24: 0 | N24: 0 | O24: 1 | P24: 0
B25: 6 | C25: Internet 120 | D25: Broadband | E25: 66.5 | F25: 54.95867769 | H25: 1 | I25: 0 | J25: Link | L25: Internet 120 | M25: 0 | N25: 0 | O25: 0 | P25: 1
B26: 7 | C26: Tel. Freephone EU | D26: Telephony | E26: 20.5 | F26: 16.94214876 | H26: 1 | I26: 1 | J26: Link | L26: Tel. Freephone EU | M26: 0 | N26: 0 | O26: 1 | P26: 1
C27: - | L27: -
C28: - | L28: -
C29: - | L29: -
C30: - | L30: -
C31: - | L31: -
C32: - | L32: -
C33: - | L33: -
C34: - | L34: -
C35: - | L35: -
C36: - | L36: -
C37: - | L37: -
C38: - | L38: -
C39: - | L39: -
C40: - | L40: -
C41: - | L41: -
C42: - | L42: -
C43: - | L43: -
C44: - | L44: -
C45: This table includes standalone retail offers that are used as components for building multiple play offers. | L45: Sum of standalone prices (VAT incl.) : | M45: =SUMPRODUCT(M20:M44,$E$20:$E$44) -> 15.2 | N45: =SUMPRODUCT(N20:N44,$E$20:$E$44) -> 23.4 | O45: 90.4 | P45: 110.4 | Q45: 0 | R45: 0 | S45: 0 | T45: 0 | U45: 0 | V45: 0 | W45: 0 | X45: 0 | Y45: Sum of standalone prices.
C46: The "Discount" column indicates whether a discount can be applied to each component in case of a bundled offer. | L46: "Packed" retail price (VAT incl.) : | M46: =TRANSPOSE(E5:E16) -> 15.2 | N46: 23.4 | O46: 61.45 | P46: 71.7 | Q46: 0 | R46: 0 | S46: 0 | T46: 0 | U46: 0 | V46: 0 | W46: 0 | X46: 0 | Y46: Price of the retail offer.
C47: As for now, only TV Rights are not discounted. | L47: Abolute discount (VAT incl.) : | M47: =M45-M46 -> 0 | N47: =N45-N46 -> 0 | O47: 28.95 | P47: 38.7 | Q47: 0 | R47: 0 | S47: 0 | T47: 0 | U47: 0 | V47: 0 | W47: 0 | X47: 0 | Y47: Absolute discount in case of "packed" offers.
C48: The "Excluded" column indicates whether each item must be excluded from the base to which the minus applies. | L48: Sum of standalone prices (VAT incl.) for which discount applies : | M48: =SUMPRODUCT(M20:M44,$E$20:$E$44,$H$20:$H$44) -> 12.02 | N48: =SUMPRODUCT(N20:N44,$E$20:$E$44,$H$20:$H$44) -> 20.22 | O48: 87.22 | P48: 107.22 | Q48: 0 | R48: 0 | S48: 0 | T48: 0 | U48: 0 | V48: 0 | W48: 0 | X48: 0 | Y48: Sum of standalone prices for items that cannot be discounted.
C49: Typical "Excludable" items are TV Rights, Telephony in case of 3-Play or valued Extras like Voo-Foot. | L49: Relative discount (wrt. "discountable" items) : | M49: =IF(M48<>0,-M47/M48,"") -> 0 | N49: =IF(N48<>0,-N47/N48,"") -> 0 | O49: -0.3319192846 | P49: -0.3609401231 | Y49: Relative discount with respect to stand alone prices for items that cannot be discounted.
A51: Pack tariff breakdown :
B52: Select offer : | C52: TV Analogique | D52: Choose retail offer
C54: Component | D54: Type | E54: Standalone price (VAT incl.) | F54: Discount | G54: Discounted price (VAT incl.) | H54: Weight
C55: =IF(INDEX(M20:X20,1,MATCH($C$52,$M$19:$X$19,0)),C20,"") ->  | D55: =IF(C55<>"",INDEX($D$20:$J$44,MATCH(C55,$C$20:$C$44,0),1),"") ->  | E55: =IF(C55<>"",INDEX($D$20:$J$44,MATCH(C55,$C$20:$C$44,0),2),"") ->  | F55: =IF(C55<>"",INDEX($M$49:$X$49,1,MATCH($C$52,$M$19:$X$19,0))*INDEX($D$20:$J$44,MATCH(C55,$C$20:$C$44,0),5),"") ->  | G55: =IF(C55<>"",E55*(1+F55),"") ->  | H55: =IF(C55<>"",G55/SUM($G$55:$G$79),"") -> 
C56: =IF(INDEX(M21:X21,1,MATCH($C$52,$M$19:$X$19,0)),C21,"") -> Cable access (rights excl.) | D56: =IF(C56<>"",INDEX($D$20:$J$44,MATCH(C56,$C$20:$C$44,0),1),"") -> Analog TV | E56: =IF(C56<>"",INDEX($D$20:$J$44,MATCH(C56,$C$20:$C$44,0),2),"") -> 12.02 | F56: =IF(C56<>"",INDEX($M$49:$X$49,1,MATCH($C$52,$M$19:$X$19,0))*INDEX($D$20:$J$44,MATCH(C56,$C$20:$C$44,0),5),"") -> 0 | G56: =IF(C56<>"",E56*(1+F56),"") -> 12.02 | H56: =IF(C56<>"",G56/SUM($G$55:$G$79),"") -> 0.7907894737
C57: TV Rights | D57: TV Rights | E57: 3.18 | F57: 0 | G57: 3.18 | H57: 0.2092105263
D80: Total : | E80: =SUM(E55:E79) -> 15.2 | G80: =SUM(G55:G79) -> 15.2 | H80: =SUM(H55:H79) -> 1
D81: Share of TV, Broadband and TV Rights (ie. exclude "Telephony" and "Extra") | E81: =SUM(E55:E79)-SUMIF(D55:D79,"=Extra",E55:E79)-SUMIF(D55:D79,"=Telephony",E55:E79) -> 15.2 | G81: =SUM(G55:G79)-SUMIF(D55:D79,"=Extra",G55:G79)-SUMIF(D55:D79,"=Telephony",G55:G79) -> 15.2 | H81: =SUM(H55:H79)-SUMIF(D55:D79,"=Extra",H55:H79)-SUMIF(D55:D79,"=Telephony",H55:H79) -> 1
C82: This table break downs the retail tariffs in components and computes the weight of each component as a percentage of the "packed" retail price. It applies the "pack" discount to items that can be discounted.
A84: Wholesale tariff :
B85: Offer : | C85: =C52 -> TV Analogique
B86: Offer type : | C86: =INDEX($D$5:$D$16,MATCH(C85,$C$5:$C$16,0)) -> Analog TV
B87: Selected Minus : | C87: =INDEX(offer.types.minus,MATCH(C86,offer.types),1) -> Analog TV
B88: Minus Value : | C88: =INDEX(minus.val.telenet,MATCH(C87,minus.name)) -> 0.3
C90: Pack Retail price (VAT incl.) | D90: =INDEX(M46:X46,1,MATCH($C$52,$M$19:$X$19,0)) -> 15.2 | E90: Retail price of the offer (VAT incl.).
C91: Minus VAT (21%) | D91: =D90/1.21-D90 -> -2.638016529
C92: Pack Retail price (VAT excl.) | D92: =SUM(D90:D91) -> 12.56198347
C93: Share of (TV+BB+Rights) | D93: =H81 -> 1 | E93: Share of components that are not "Telephony" nor "Extra" (ie. that can be excluded except TV Rights that are deducted below).
C94: 2P equiv. Pack Retail price (VAT excl.) | D94: =D92*D93 -> 12.56198347 | E94: Retail price of an equivalent "2-Play" pack in case some components must be exluded.
C95: Minus TV Rights (TVA excl.) | D95: =-SUMIF(D55:D79,"TV Rights",G55:G79)/1.21 -> -2.628099174
C96: Minus application base (VAT excl.) | D96: =SUM(D94:D95) -> 9.933884298
C97: Minus "Minus" | D97: =-C88 -> -0.3
C98: Wholesale tariff (VAT excl.) | D98: =D96*(1+D97) -> 6.953719008 | E98: Wholesale price (VAT excl.).

Sheet Voo
A1: Voo
A3: Retail offers : | K3: Offer characteristics : | M3: Analog TV | O3: Digital TV | S3: Broadband | V3: Telephony | X3: Extras
B4: Id. | C4: Name | D4: Type | E4: Retail price (VAT incl.) | F4: Retail price (VAT excl.) | G4: Remark | H4: Link | I4: Legend : | J4: Label / Name | L4: Name | M4: Analog TV | N4: #Channels | O4: Digital TV | P4: #Channels | Q4: #HD Channels | R4: Decoder | S4: Broadband | T4: Bitrate Dn[/Up] | U4: Quota | V4: Telephony | W4: Options | X4: -
B5: =IF(C5<>"-",1,"") -> 1 | C5: TV Analogique | D5: Analog TV | E5: 16.86 | F5: =IF(E5<>"",E5/1.21,"") -> 13.9338843 | H5: Link | J5: Computation | L5: =C5 -> TV Analogique | M5: X | N5: 20+ | O5: - | P5: - | Q5: - | R5: - | S5: - | T5: - | U5: - | V5: - | W5: - | X5: -
B6: =IF(C6<>"-",B5+1,"") -> 2 | C6: TV Numérique Interactive | D6: Digital TV | E6: =16.86+6.09 -> 22.95 | F6: =IF(E6<>"",E6/1.21,"") -> 18.96694215 | G6: Price incl. decoder (6,09€) | H6: Link | J6: Required Input | L6: =C6 -> TV Numérique Interactive | M6: X | N6: 20+ | O6: X | P6: 65+ | Q6: 11 | R6: VOOcorder | S6: - | T6: - | U6: - | V6: - | W6: - | X6: -
B7: =IF(C7<>"-",B6+1,"") -> 3 | C7: Duo TV NET "Un peu" | D7: Dual play | E7: 40.95 | F7: 33.84297521 | G7: Price "all in" | H7: Link | J7: Optional Input | L7: Duo TV NET "Un peu" | M7: X | N7: 20+ | O7: X | P7: 65+ | Q7: 11 | R7: VOOcorder | S7: X | T7: 30M | U7: 100G | V7: - | W7: - | X7: -
B8: =IF(C8<>"-",B7+1,"") -> 4 | C8: Duo TV NET "Beaucoup" | D8: Dual play | E8: 50.95 | F8: 42.10743802 | G8: Price "all in" | H8: Link | J8: Selection | L8: Duo TV NET "Beaucoup" | M8: X | N8: 20+ | O8: X | P8: 65+ | Q8: 11 | R8: VOOcorder | S8: X | T8: 40M | U8: Illimité | V8: - | W8: - | X8: -
B9: =IF(C9<>"-",B8+1,"") -> 5 | C9: Duo TV NET "Passionnement" | D9: Dual play | E9: 60.95 | F9: 50.37190083 | G9: Price "all in" | H9: Link | J9: Output | L9: Duo TV NET "Passionnement" | M9: X | N9: 20+ | O9: X | P9: 65+ | Q9: 11 | R9: VOOcorder | S9: X | T9: 50M | U9: Illimité | V9: - | W9: - | X9: VooFoot
B10: =IF(C10<>"-",B9+1,"") -> 6 | C10: Duo TV NET "A la folie" | D10: Dual play | E10: 70.95 | F10: 58.63636364 | G10: Price "all in" | H10: Link | L10: Duo TV NET "A la folie" | M10: X | N10: 20+ | O10: X | P10: 65+ | Q10: 11 | R10: VOOcorder | S10: X | T10: 70M | U10: Illimité | V10: - | W10: - | X10: VooFoot
B11: =IF(C11<>"-",B10+1,"") -> 7 | C11: Duo TV NET "Fiber 100" | D11: Dual play | E11: 90.95 | F11: 75.16528926 | G11: Price "all in" | H11: Link | L11: Duo TV NET "Fiber 100" | M11: X | N11: 20+ | O11: X | P11: 65+ | Q11: 11 | R11: VOOcorder | S11: X | T11: 100M | U11: Illimité | V11: - | W11: - | X11: VooFoot
C12: - | L12: -
C13: - | L13: -
C14: - | L14: -
C15: - | L15: -
C16: - | L16: -
C17: This table includes retail offers that are used as starting point for setting wholesale prices.
A18: Standalone components : | L18: Packs composition : | M18: This table maps "packed" retail offers to standalone components.
B19: Id. | C19: Name | D19: Type | E19: Retail price (VAT incl.) | F19: Retail price (VAT excl.) | G19: Remark | H19: Discount | I19: Excluded | J19: Link | M19: =TRANSPOSE(C5:C16) -> TV Analogique | N19: TV Numérique Interactive | O19: Duo TV NET "Un peu" | P19: Duo TV NET "Beaucoup" | Q19: Duo TV NET "Passionnement" | R19: Duo TV NET "A la folie" | S19: Duo TV NET "Fiber 100" | T19: - | U19: - | V19: - | W19: - | X19: -
B20: =IF(C20<>"-",1,"") -> 1 | C20: Cable access (rights incl.) | D20: Analog TV | E20: 16.86 | F20: =IF(E20<>"",E20/1.21,"") -> 13.9338843 | H20: 1 | I20: 0 | J20: Link | L20: =C20 -> Cable access (rights incl.) | M20: 0 | N20: 0 | O20: 0 | P20: 0 | Q20: 0 | R20: 0 | S20: 0
B21: =IF(C21<>"-",B20+1,"") -> 2 | C21: Cable access (rights excl.) | D21: Analog TV | E21: =E20-SUM(E22:E23) -> 13.47 | F21: =IF(E21<>"",E21/1.21,"") -> 11.1322314 | H21: 1 | I21: 0 | J21: Link | L21: =C21 -> Cable access (rights excl.) | M21: 1 | N21: 1 | O21: 1 | P21: 1 | Q21: 1 | R21: 1 | S21: 1
B22: =IF(C22<>"-",B21+1,"") -> 3 | C22: TV Rights | D22: TV Rights | E22: 2.91 | F22: 2.404958678 | H22: 0 | I22: 1 | J22: Link | L22: TV Rights | M22: 1 | N22: 1 | O22: 1 | P22: 1 | Q22: 1 | R22: 1 | S22: 1
B23: 4 | C23: Promotion audiovisuel | D23: TV Rights | E23: 0.48 | F23: 0.3966942149 | G23: Tecteo Only | H23: 0 | I23: 1 | J23: Link | L23: Promotion audiovisuel | M23: 1 | N23: 1 | O23: 1 | P23: 1 | Q23: 1 | R23: 1 | S23: 1
B24: 5 | C24: VOOcorder | D24: Decoder | E24: 6.09 | F24: 5.033057851 | H24: 1 | I24: 0 | J24: Link | L24: VOOcorder | M24: 0 | N24: 1 | O24: 1 | P24: 1 | Q24: 1 | R24: 1 | S24: 1
B25: 6 | C25: Internet "Un peu" | D25: Broadband | E25: 24.95 | F25: 20.61983471 | H25: 1 | I25: 0 | J25: Link | L25: Internet "Un peu" | M25: 0 | N25: 0 | O25: 1 | P25: 0 | Q25: 0 | R25: 0 | S25: 0
B26: 7 | C26: Internet "Beaucoup" | D26: Broadband | E26: 34.95 | F26: 28.88429752 | H26: 1 | I26: 0 | J26: Link | L26: Internet "Beaucoup" | M26: 0 | N26: 0 | O26: 0 | P26: 1 | Q26: 0 | R26: 0 | S26: 0
B27: 8 | C27: Internet "Passionnement" | D27: Broadband | E27: 44.95 | F27: 37.14876033 | H27: 1 | I27: 0 | J27: Link | L27: Internet "Passionnement" | M27: 0 | N27: 0 | O27: 0 | P27: 0 | Q27: 1 | R27: 0 | S27: 0
B28: 9 | C28: Internet "A la folie" | D28: Broadband | E28: 54.95 | F28: 45.41322314 | H28: 1 | I28: 0 | J28: Link | L28: Internet "A la folie" | M28: 0 | N28: 0 | O28: 0 | P28: 0 | Q28: 0 | R28: 1 | S28: 0
B29: 10 | C29: Internet "Fiber 100" | D29: Broadband | E29: 74.95 | F29: 61.94214876 | H29: 1 | I29: 0 | J29: Link | L29: Internet "Fiber 100" | M29: 0 | N29: 0 | O29: 0 | P29: 0 | Q29: 0 | R29: 0 | S29: 1
B30: 11 | C30: VooFoot | D30: Extra | E30: 10.8 | F30: 8.925619835 | H30: 1 | I30: 1 | J30: Link | L30: VooFoot | M30: 0 | N30: 0 | O30: 0 | P30: 0 | Q30: 1 | R30: 1 | S30: 1
C31: - | L31: -
C32: - | L32: -
C33: - | L33: -
C34: - | L34: -
C35: - | L35: -
C36: - | L36: -
C37: - | L37: -
C38: - | L38: -
C39: - | L39: -
C40: - | L40: -
C41: - | L41: -
C42: - | L42: -
C43: - | L43: -
C44: - | L44: -
C45: This table includes standalone retail offers that are used as components for building multiple play offers. | L45: Sum of standalone prices (VAT incl.) : | M45: =SUMPRODUCT(M20:M44,$E$20:$E$44) -> 16.86 | N45: =SUMPRODUCT(N20:N44,$E$20:$E$44) -> 22.95 | O45: 47.9 | P45: 57.9 | Q45: 78.7 | R45: 88.7 | S45: 108.7 | T45: 0 | U45: 0 | V45: 0 | W45: 0 | X45: 0 | Y45: Sum of standalone prices.
C46: The "Discount" column indicates whether a discount can be applied to each component in case of a bundled offer. | L46: "Packed" retail price (VAT incl.) : | M46: =TRANSPOSE(E5:E16) -> 16.86 | N46: 22.95 | O46: 40.95 | P46: 50.95 | Q46: 60.95 | R46: 70.95 | S46: 90.95 | T46: 0 | U46: 0 | V46: 0 | W46: 0 | X46: 0 | Y46: Price of the retail offer.
C47: As for now, only TV Rights are not discounted. | L47: Abolute discount (VAT incl.) : | M47: =M45-M46 -> 0 | N47: =N45-N46 -> 0 | O47: 6.95 | P47: 6.95 | Q47: 17.75 | R47: 17.75 | S47: 17.75 | T47: 0 | U47: 0 | V47: 0 | W47: 0 | X47: 0 | Y47: Absolute discount in case of "packed" offers.
C48: The "Excluded" column indicates whether each item must be excluded from the base to which the minus applies. | L48: Sum of standalone prices (VAT incl.) for which discount applies : | M48: =SUMPRODUCT(M20:M44,$E$20:$E$44,$H$20:$H$44) -> 13.47 | N48: =SUMPRODUCT(N20:N44,$E$20:$E$44,$H$20:$H$44) -> 19.56 | O48: 44.51 | P48: 54.51 | Q48: 75.31 | R48: 85.31 | S48: 105.31 | T48: 0 | U48: 0 | V48: 0 | W48: 0 | X48: 0 | Y48: Sum of standalone prices for items that cannot be discounted.
C49: Typical "Excludable" items are TV Rights, Telephony in case of 3-Play or valued Extras like Voo-Foot. | L49: Relative discount (wrt. "discountable" items) : | M49: =IF(M48<>0,-M47/M48,"") -> 0 | N49: =IF(N48<>0,-N47/N48,"") -> 0 | O49: -0.1561446866 | P49: -0.1274995414 | Q49: -0.2356924711 | R49: -0.2080647052 | S49: -0.1685499953 | Y49: Relative discount with respect to stand alone prices for items that cannot be discounted.
A51: Pack tariff breakdown :
B52: Select offer : | C52: TV Analogique | D52: Choose retail offer
C54: Component | D54: Type | E54: Standalone price (VAT incl.) | F54: Discount | G54: Discounted price (VAT incl.) | H54: Weight
C55: =IF(INDEX(M20:X20,1,MATCH($C$52,$M$19:$X$19,0)),C20,"") ->  | D55: =IF(C55<>"",INDEX($D$20:$J$44,MATCH(C55,$C$20:$C$44,0),1),"") ->  | E55: =IF(C55<>"",INDEX($D$20:$J$44,MATCH(C55,$C$20:$C$44,0),2),"") ->  | F55: =IF(C55<>"",INDEX($M$49:$X$49,1,MATCH($C$52,$M$19:$X$19,0))*INDEX($D$20:$J$44,MATCH(C55,$C$20:$C$44,0),5),"") ->  | G55: =IF(C55<>"",E55*(1+F55),"") ->  | H55: =IF(C55<>"",G55/SUM($G$55:$G$79),"") -> 
C56: =IF(INDEX(M21:X21,1,MATCH($C$52,$M$19:$X$19,0)),C21,"") -> Cable access (rights excl.) | D56: =IF(C56<>"",INDEX($D$20:$J$44,MATCH(C56,$C$20:$C$44,0),1),"") -> Analog TV | E56: =IF(C56<>"",INDEX($D$20:$J$44,MATCH(C56,$C$20:$C$44,0),2),"") -> 13.47 | F56: =IF(C56<>"",INDEX($M$49:$X$49,1,MATCH($C$52,$M$19:$X$19,0))*INDEX($D$20:$J$44,MATCH(C56,$C$20:$C$44,0),5),"") -> 0 | G56: =IF(C56<>"",E56*(1+F56),"") -> 13.47 | H56: =IF(C56<>"",G56/SUM($G$55:$G$79),"") -> 0.7989323843
C57: TV Rights | D57: TV Rights | E57: 2.91 | F57: 0 | G57: 2.91 | H57: 0.1725978648
C58: Promotion audiovisuel | D58: TV Rights | E58: 0.48 | F58: 0 | G58: 0.48 | H58: 0.02846975089
D80: Total : | E80: =SUM(E55:E79) -> 16.86 | G80: =SUM(G55:G79) -> 16.86 | H80: =SUM(H55:H79) -> 1
D81: Share of TV, Broadband and TV Rights (ie. exclude "Telephony" and "Extra") | E81: =SUM(E55:E79)-SUMIF(D55:D79,"=Extra",E55:E79)-SUMIF(D55:D79,"=Telephony",E55:E79) -> 16.86 | G81: =SUM(G55:G79)-SUMIF(D55:D79,"=Extra",G55:G79)-SUMIF(D55:D79,"=Telephony",G55:G79) -> 16.86 | H81: =SUM(H55:H79)-SUMIF(D55:D79,"=Extra",H55:H79)-SUMIF(D55:D79,"=Telephony",H55:H79) -> 1
C82: This table break downs the retail tariffs in components and computes the weight of each component as a percentage of the "packed" retail price. It applies the "pack" discount to items that can be discounted.
A84: Wholesale tariff :
B85: Offer : | C85: =C52 -> TV Analogique
B86: Offer type : | C86: =INDEX($D$5:$D$16,MATCH(C85,$C$5:$C$16,0)) -> Analog TV
B87: Selected Minus : | C87: =INDEX(offer.types.minus,MATCH(C86,offer.types),1) -> Analog TV
B88: Minus Value : | C88: =INDEX(minus.val.voo,MATCH(C87,minus.name)) -> 0.3
C90: Pack Retail price (VAT incl.) | D90: =INDEX(M46:X46,1,MATCH($C$52,$M$19:$X$19,0)) -> 16.86 | E90: Retail price of the offer (VAT incl.).
C91: Minus VAT (21%) | D91: =D90/1.21-D90 -> -2.926115702
C92: Pack Retail price (VAT excl.) | D92: =SUM(D90:D91) -> 13.9338843
C93: Share of (TV+BB+Rights) | D93: =H81 -> 1 | E93: Share of components that are not "Telephony" nor "Extra" (ie. that can be excluded except TV Rights that are deducted below).
C94: 2P equiv. Pack Retail price (VAT excl.) | D94: =D92*D93 -> 13.9338843 | E94: Retail price of an equivalent "2-Play" pack in case some components must be exluded.
C95: Minus TV Rights (TVA excl.) | D95: =-SUMIF(D55:D79,"TV Rights",G55:G79)/1.21 -> -2.801652893
C96: Minus application base (VAT excl.) | D96: =SUM(D94:D95) -> 11.1322314
C97: Minus "Minus" | D97: =-C88 -> -0.3
C98: Wholesale tariff (VAT excl.) | D98: =D96*(1+D97) -> 7.792561983 | E98: Wholesale price (VAT excl.).

Sheet Offers
A1: Numericable | B1: Analog TV | D1: Digital TV | H1: Broadband | K1: Telephony | M1: Extras
A2: Name | B2: Analog TV | C2: #Channels | D2: Digital TV | E2: #Channels | F2: #HD Channels | G2: Decoder | H2: Broadband | I2: Bitrate Dn[/Up] | J2: Quota | K2: Telephony | L2: Options | M2: -
A3: =Numericable!L5 -> Télédistribution | B3: =IF($A3="-","",Numericable!M5) -> X | C3: =IF($A3="-","",Numericable!N5) -> 25 | D3: =IF($A3="-","",Numericable!O5) -> - | E3: =IF($A3="-","",Numericable!P5) -> - | F3: =IF($A3="-","",Numericable!Q5) -> - | G3: =IF($A3="-","",Numericable!R5) -> - | H3: =IF($A3="-","",Numericable!S5) -> - | I3: =IF($A3="-","",Numericable!T5) -> - | J3: =IF($A3="-","",Numericable!U5) -> - | K3: =IF($A3="-","",Numericable!V5) -> - | L3: =IF($A3="-","",Numericable!W5) -> - | M3: =IF($A3="-","",Numericable!X5) -> -
A4: =Numericable!L6 -> TV Plus (digital) | B4: =IF($A4="-","",Numericable!M6) -> X | C4: =IF($A4="-","",Numericable!N6) -> 25 | D4: =IF($A4="-","",Numericable!O6) -> X | E4: =IF($A4="-","",Numericable!P6) -> 130 | F4: =IF($A4="-","",Numericable!Q6) -> 17 | G4: =IF($A4="-","",Numericable!R6) -> HD/HDD | H4: =IF($A4="-","",Numericable!S6) -> - | I4: =IF($A4="-","",Numericable!T6) -> - | J4: =IF($A4="-","",Numericable!U6) -> - | K4: =IF($A4="-","",Numericable!V6) -> - | L4: =IF($A4="-","",Numericable!W6) -> - | M4: =IF($A4="-","",Numericable!X6) -> -
A5: =Numericable!L7 -> Duo TV+Web | B5: =IF($A5="-","",Numericable!M7) -> X | C5: =IF($A5="-","",Numericable!N7) -> 25 | D5: =IF($A5="-","",Numericable!O7) -> X | E5: =IF($A5="-","",Numericable!P7) -> 100 | F5: =IF($A5="-","",Numericable!Q7) -> 12 | G5: =IF($A5="-","",Numericable!R7) -> HD/HDD | H5: =IF($A5="-","",Numericable!S7) -> X | I5: =IF($A5="-","",Numericable!T7) -> 50M/2.5M | J5: =IF($A5="-","",Numericable!U7) -> 100G | K5: =IF($A5="-","",Numericable!V7) -> - | L5: =IF($A5="-","",Numericable!W7) -> - | M5: =IF($A5="-","",Numericable!X7) -> -
A6: =Numericable!L8 -> Triple Play Extra | B6: =IF($A6="-","",Numericable!M8) -> X | C6: =IF($A6="-","",Numericable!N8) -> 25 | D6: =IF($A6="-","",Numericable!O8) -> X | E6: =IF($A6="-","",Numericable!P8) -> 130 | F6: =IF($A6="-","",Numericable!Q8) -> 17 | G6: =IF($A6="-","",Numericable!R8) -> Box 160 + HD | H6: =IF($A6="-","",Numericable!S8) -> X | I6: =IF($A6="-","",Numericable!T8) -> 100M/5M | J6: =IF($A6="-","",Numericable!U8) -> Illimité | K6: =IF($A6="-","",Numericable!V8) -> X | L6: =IF($A6="-","",Numericable!W8) -> Extra + Voisins | M6: =IF($A6="-","",Numericable!X8) -> -
A7: =Numericable!L9 -> Triple Play Max | B7: =IF($A7="-","",Numericable!M9) -> X | C7: =IF($A7="-","",Numericable!N9) -> 25 | D7: =IF($A7="-","",Numericable!O9) -> X | E7: =IF($A7="-","",Numericable!P9) -> 130 | F7: =IF($A7="-","",Numericable!Q9) -> 17 | G7: =IF($A7="-","",Numericable!R9) -> Box 320 + HD | H7: =IF($A7="-","",Numericable!S9) -> X | I7: =IF($A7="-","",Numericable!T9) -> 200M/8M | J7: =IF($A7="-","",Numericable!U9) -> Illimité | K7: =IF($A7="-","",Numericable!V9) -> X | L7: =IF($A7="-","",Numericable!W9) -> Extra + Monde | M7: =IF($A7="-","",Numericable!X9) -> Mini Premium
A8: =Numericable!L10 -> - | B8: =IF($A8="-","",Numericable!M10) ->  | C8: =IF($A8="-","",Numericable!N10) ->  | D8: =IF($A8="-","",Numericable!O10) ->  | E8: =IF($A8="-","",Numericable!P10) ->  | F8: =IF($A8="-","",Numericable!Q10) ->  | G8: =IF($A8="-","",Numericable!R10) ->  | H8: =IF($A8="-","",Numericable!S10) ->  | I8: =IF($A8="-","",Numericable!T10) ->  | J8: =IF($A8="-","",Numericable!U10) ->  | K8: =IF($A8="-","",Numericable!V10) ->  | L8: =IF($A8="-","",Numericable!W10) ->  | M8: =IF($A8="-","",Numericable!X10) -> 
A9: =Numericable!L11 -> - | B9: =IF($A9="-","",Numericable!M11) ->  | C9: =IF($A9="-","",Numericable!N11) ->  | D9: =IF($A9="-","",Numericable!O11) ->  | E9: =IF($A9="-","",Numericable!P11) ->  | F9: =IF($A9="-","",Numericable!Q11) ->  | G9: =IF($A9="-","",Numericable!R11) ->  | H9: =IF($A9="-","",Numericable!S11) ->  | I9: =IF($A9="-","",Numericable!T11) ->  | J9: =IF($A9="-","",Numericable!U11) ->  | K9: =IF($A9="-","",Numericable!V11) ->  | L9: =IF($A9="-","",Numericable!W11) ->  | M9: =IF($A9="-","",Numericable!X11) -> 
A10: =Numericable!L12 -> - | B10: =IF($A10="-","",Numericable!M12) ->  | C10: =IF($A10="-","",Numericable!N12) ->  | D10: =IF($A10="-","",Numericable!O12) ->  | E10: =IF($A10="-","",Numericable!P12) ->  | F10: =IF($A10="-","",Numericable!Q12) ->  | G10: =IF($A10="-","",Numericable!R12) ->  | H10: =IF($A10="-","",Numericable!S12) ->  | I10: =IF($A10="-","",Numericable!T12) ->  | J10: =IF($A10="-","",Numericable!U12) ->  | K10: =IF($A10="-","",Numericable!V12) ->  | L10: =IF($A10="-","",Numericable!W12) ->  | M10: =IF($A10="-","",Numericable!X12) -> 
A11: =Numericable!L13 -> - | B11: =IF($A11="-","",Numericable!M13) ->  | C11: =IF($A11="-","",Numericable!N13) ->  | D11: =IF($A11="-","",Numericable!O13) ->  | E11: =IF($A11="-","",Numericable!P13) ->  | F11: =IF($A11="-","",Numericable!Q13) ->  | G11: =IF($A11="-","",Numericable!R13) ->  | H11: =IF($A11="-","",Numericable!S13) ->  | I11: =IF($A11="-","",Numericable!T13) ->  | J11: =IF($A11="-","",Numericable!U13) ->  | K11: =IF($A11="-","",Numericable!V13) ->  | L11: =IF($A11="-","",Numericable!W13) ->  | M11: =IF($A11="-","",Numericable!X13) -> 
A12: =Numericable!L14 -> - | B12: =IF($A12="-","",Numericable!M14) ->  | C12: =IF($A12="-","",Numericable!N14) ->  | D12: =IF($A12="-","",Numericable!O14) ->  | E12: =IF($A12="-","",Numericable!P14) ->  | F12: =IF($A12="-","",Numericable!Q14) ->  | G12: =IF($A12="-","",Numericable!R14) ->  | H12: =IF($A12="-","",Numericable!S14) ->  | I12: =IF($A12="-","",Numericable!T14) ->  | J12: =IF($A12="-","",Numericable!U14) ->  | K12: =IF($A12="-","",Numericable!V14) ->  | L12: =IF($A12="-","",Numericable!W14) ->  | M12: =IF($A12="-","",Numericable!X14) -> 
A13: =Numericable!L15 -> - | B13: =IF($A13="-","",Numericable!M15) ->  | C13: =IF($A13="-","",Numericable!N15) ->  | D13: =IF($A13="-","",Numericable!O15) ->  | E13: =IF($A13="-","",Numericable!P15) ->  | F13: =IF($A13="-","",Numericable!Q15) ->  | G13: =IF($A13="-","",Numericable!R15) ->  | H13: =IF($A13="-","",Numericable!S15) ->  | I13: =IF($A13="-","",Numericable!T15) ->  | J13: =IF($A13="-","",Numericable!U15) ->  | K13: =IF($A13="-","",Numericable!V15) ->  | L13: =IF($A13="-","",Numericable!W15) ->  | M13: =IF($A13="-","",Numericable!X15) -> 
A14: =Numericable!L16 -> - | B14: =IF($A14="-","",Numericable!M16) ->  | C14: =IF($A14="-","",Numericable!N16) ->  | D14: =IF($A14="-","",Numericable!O16) ->  | E14: =IF($A14="-","",Numericable!P16) ->  | F14: =IF($A14="-","",Numericable!Q16) ->  | G14: =IF($A14="-","",Numericable!R16) ->  | H14: =IF($A14="-","",Numericable!S16) ->  | I14: =IF($A14="-","",Numericable!T16) ->  | J14: =IF($A14="-","",Numericable!U16) ->  | K14: =IF($A14="-","",Numericable!V16) ->  | L14: =IF($A14="-","",Numericable!W16) ->  | M14: =IF($A14="-","",Numericable!X16) -> 
A16: Telenet | B16: Analog TV | D16: Digital TV | H16: Broadband | K16: Telephony | M16: Extras
A17: Name | B17: Analog TV | C17: #Channels | D17: Digital TV | E17: #Channels | F17: #HD Channels | G17: Decoder | H17: Broadband | I17: Bitrate Dn[/Up] | J17: Quota | K17: Telephony | L17: Options | M17: -
A18: =Telenet!L5 -> TV Analogique | B18: =IF($A18="-","",Telenet!M5) -> X | C18: =IF($A18="-","",Telenet!N5) -> ? | D18: =IF($A18="-","",Telenet!O5) -> - | E18: =IF($A18="-","",Telenet!P5) -> - | F18: =IF($A18="-","",Telenet!Q5) -> - | G18: =IF($A18="-","",Telenet!R5) -> - | H18: =IF($A18="-","",Telenet!S5) -> - | I18: =IF($A18="-","",Telenet!T5) -> - | J18: =IF($A18="-","",Telenet!U5) -> - | K18: =IF($A18="-","",Telenet!V5) -> - | L18: =IF($A18="-","",Telenet!W5) -> - | M18: =IF($A18="-","",Telenet!X5) -> -
A19: =Telenet!L6 -> TV Digitale | B19: =IF($A19="-","",Telenet!M6) -> X | C19: =IF($A19="-","",Telenet!N6) -> ? | D19: =IF($A19="-","",Telenet!O6) -> X | E19: =IF($A19="-","",Telenet!P6) -> 75 | F19: =IF($A19="-","",Telenet!Q6) -> ? | G19: =IF($A19="-","",Telenet!R6) -> HD Digicorder | H19: =IF($A19="-","",Telenet!S6) -> - | I19: =IF($A19="-","",Telenet!T6) -> - | J19: =IF($A19="-","",Telenet!U6) -> - | K19: =IF($A19="-","",Telenet!V6) -> - | L19: =IF($A19="-","",Telenet!W6) -> - | M19: =IF($A19="-","",Telenet!X6) -> -
A20: =Telenet!L7 -> Whop | B20: =IF($A20="-","",Telenet!M7) -> X | C20: =IF($A20="-","",Telenet!N7) -> ? | D20: =IF($A20="-","",Telenet!O7) -> X | E20: =IF($A20="-","",Telenet!P7) -> 75 | F20: =IF($A20="-","",Telenet!Q7) -> ? | G20: =IF($A20="-","",Telenet!R7) -> HD Digicorder | H20: =IF($A20="-","",Telenet!S7) -> X | I20: =IF($A20="-","",Telenet!T7) -> 60M/4M | J20: =IF($A20="-","",Telenet!U7) -> 100G | K20: =IF($A20="-","",Telenet!V7) -> X | L20: =IF($A20="-","",Telenet!W7) -> FreePhone EU | M20: =IF($A20="-","",Telenet!X7) -> -
A21: =Telenet!L8 -> Whoppa | B21: =IF($A21="-","",Telenet!M8) -> X | C21: =IF($A21="-","",Telenet!N8) -> ? | D21: =IF($A21="-","",Telenet!O8) -> X | E21: =IF($A21="-","",Telenet!P8) -> 75 | F21: =IF($A21="-","",Telenet!Q8) -> ? | G21: =IF($A21="-","",Telenet!R8) -> HD Digicorder | H21: =IF($A21="-","",Telenet!S8) -> X | I21: =IF($A21="-","",Telenet!T8) -> 120M/6M | J21: =IF($A21="-","",Telenet!U8) -> Illimité | K21: =IF($A21="-","",Telenet!V8) -> X | L21: =IF($A21="-","",Telenet!W8) -> FreePhone EU | M21: =IF($A21="-","",Telenet!X8) -> -
A22: =Telenet!L9 -> - | B22: =IF($A22="-","",Telenet!M9) ->  | C22: =IF($A22="-","",Telenet!N9) ->  | D22: =IF($A22="-","",Telenet!O9) ->  | E22: =IF($A22="-","",Telenet!P9) ->  | F22: =IF($A22="-","",Telenet!Q9) ->  | G22: =IF($A22="-","",Telenet!R9) ->  | H22: =IF($A22="-","",Telenet!S9) ->  | I22: =IF($A22="-","",Telenet!T9) ->  | J22: =IF($A22="-","",Telenet!U9) ->  | K22: =IF($A22="-","",Telenet!V9) ->  | L22: =IF($A22="-","",Telenet!W9) ->  | M22: =IF($A22="-","",Telenet!X9) -> 
A23: =Telenet!L10 -> - | B23: =IF($A23="-","",Telenet!M10) ->  | C23: =IF($A23="-","",Telenet!N10) ->  | D23: =IF($A23="-","",Telenet!O10) ->  | E23: =IF($A23="-","",Telenet!P10) ->  | F23: =IF($A23="-","",Telenet!Q10) ->  | G23: =IF($A23="-","",Telenet!R10) ->  | H23: =IF($A23="-","",Telenet!S10) ->  | I23: =IF($A23="-","",Telenet!T10) ->  | J23: =IF($A23="-","",Telenet!U10) ->  | K23: =IF($A23="-","",Telenet!V10) ->  | L23: =IF($A23="-","",Telenet!W10) ->  | M23: =IF($A23="-","",Telenet!X10) -> 
A24: =Telenet!L11 -> - | B24: =IF($A24="-","",Telenet!M11) ->  | C24: =IF($A24="-","",Telenet!N11) ->  | D24: =IF($A24="-","",Telenet!O11) ->  | E24: =IF($A24="-","",Telenet!P11) ->  | F24: =IF($A24="-","",Telenet!Q11) ->  | G24: =IF($A24="-","",Telenet!R11) ->  | H24: =IF($A24="-","",Telenet!S11) ->  | I24: =IF($A24="-","",Telenet!T11) ->  | J24: =IF($A24="-","",Telenet!U11) ->  | K24: =IF($A24="-","",Telenet!V11) ->  | L24: =IF($A24="-","",Telenet!W11) ->  | M24: =IF($A24="-","",Telenet!X11) -> 
A25: =Telenet!L12 -> - | B25: =IF($A25="-","",Telenet!M12) ->  | C25: =IF($A25="-","",Telenet!N12) ->  | D25: =IF($A25="-","",Telenet!O12) ->  | E25: =IF($A25="-","",Telenet!P12) ->  | F25: =IF($A25="-","",Telenet!Q12) ->  | G25: =IF($A25="-","",Telenet!R12) ->  | H25: =IF($A25="-","",Telenet!S12) ->  | I25: =IF($A25="-","",Telenet!T12) ->  | J25: =IF($A25="-","",Telenet!U12) ->  | K25: =IF($A25="-","",Telenet!V12) ->  | L25: =IF($A25="-","",Telenet!W12) ->  | M25: =IF($A25="-","",Telenet!X12) -> 
A26: =Telenet!L13 -> - | B26: =IF($A26="-","",Telenet!M13) ->  | C26: =IF($A26="-","",Telenet!N13) ->  | D26: =IF($A26="-","",Telenet!O13) ->  | E26: =IF($A26="-","",Telenet!P13) ->  | F26: =IF($A26="-","",Telenet!Q13) ->  | G26: =IF($A26="-","",Telenet!R13) ->  | H26: =IF($A26="-","",Telenet!S13) ->  | I26: =IF($A26="-","",Telenet!T13) ->  | J26: =IF($A26="-","",Telenet!U13) ->  | K26: =IF($A26="-","",Telenet!V13) ->  | L26: =IF($A26="-","",Telenet!W13) ->  | M26: =IF($A26="-","",Telenet!X13) -> 
A27: =Telenet!L14 -> - | B27: =IF($A27="-","",Telenet!M14) ->  | C27: =IF($A27="-","",Telenet!N14) ->  | D27: =IF($A27="-","",Telenet!O14) ->  | E27: =IF($A27="-","",Telenet!P14) ->  | F27: =IF($A27="-","",Telenet!Q14) ->  | G27: =IF($A27="-","",Telenet!R14) ->  | H27: =IF($A27="-","",Telenet!S14) ->  | I27: =IF($A27="-","",Telenet!T14) ->  | J27: =IF($A27="-","",Telenet!U14) ->  | K27: =IF($A27="-","",Telenet!V14) ->  | L27: =IF($A27="-","",Telenet!W14) ->  | M27: =IF($A27="-","",Telenet!X14) -> 
A28: =Telenet!L15 -> - | B28: =IF($A28="-","",Telenet!M15) ->  | C28: =IF($A28="-","",Telenet!N15) ->  | D28: =IF($A28="-","",Telenet!O15) ->  | E28: =IF($A28="-","",Telenet!P15) ->  | F28: =IF($A28="-","",Telenet!Q15) ->  | G28: =IF($A28="-","",Telenet!R15) ->  | H28: =IF($A28="-","",Telenet!S15) ->  | I28: =IF($A28="-","",Telenet!T15) ->  | J28: =IF($A28="-","",Telenet!U15) ->  | K28: =IF($A28="-","",Telenet!V15) ->  | L28: =IF($A28="-","",Telenet!W15) ->  | M28: =IF($A28="-","",Telenet!X15) -> 
A29: =Telenet!L16 -> - | B29: =IF($A29="-","",Telenet!M16) ->  | C29: =IF($A29="-","",Telenet!N16) ->  | D29: =IF($A29="-","",Telenet!O16) ->  | E29: =IF($A29="-","",Telenet!P16) ->  | F29: =IF($A29="-","",Telenet!Q16) ->  | G29: =IF($A29="-","",Telenet!R16) ->  | H29: =IF($A29="-","",Telenet!S16) ->  | I29: =IF($A29="-","",Telenet!T16) ->  | J29: =IF($A29="-","",Telenet!U16) ->  | K29: =IF($A29="-","",Telenet!V16) ->  | L29: =IF($A29="-","",Telenet!W16) ->  | M29: =IF($A29="-","",Telenet!X16) -> 
A31: Voo | B31: Analog TV | D31: Digital TV | H31: Broadband | K31: Telephony | M31: Extras
A32: Name | B32: Analog TV | C32: #Channels | D32: Digital TV | E32: #Channels | F32: #HD Channels | G32: Decoder | H32: Broadband | I32: Bitrate Dn[/Up] | J32: Quota | K32: Telephony | L32: Options | M32: -
A33: =Voo!L5 -> TV Analogique | B33: =IF($A33="-","",Voo!M5) -> X | C33: =IF($A33="-","",Voo!N5) -> 20+ | D33: =IF($A33="-","",Voo!O5) -> - | E33: =IF($A33="-","",Voo!P5) -> - | F33: =IF($A33="-","",Voo!Q5) -> - | G33: =IF($A33="-","",Voo!R5) -> - | H33: =IF($A33="-","",Voo!S5) -> - | I33: =IF($A33="-","",Voo!T5) -> - | J33: =IF($A33="-","",Voo!U5) -> - | K33: =IF($A33="-","",Voo!V5) -> - | L33: =IF($A33="-","",Voo!W5) -> - | M33: =IF($A33="-","",Voo!X5) -> -
A34: =Voo!L6 -> TV Numérique Interactive | B34: =IF($A34="-","",Voo!M6) -> X | C34: =IF($A34="-","",Voo!N6) -> 20+ | D34: =IF($A34="-","",Voo!O6) -> X | E34: =IF($A34="-","",Voo!P6) -> 65+ | F34: =IF($A34="-","",Voo!Q6) -> 11 | G34: =IF($A34="-","",Voo!R6) -> VOOcorder | H34: =IF($A34="-","",Voo!S6) -> - | I34: =IF($A34="-","",Voo!T6) -> - | J34: =IF($A34="-","",Voo!U6) -> - | K34: =IF($A34="-","",Voo!V6) -> - | L34: =IF($A34="-","",Voo!W6) -> - | M34: =IF($A34="-","",Voo!X6) -> -
A35: =Voo!L7 -> Duo TV NET "Un peu" | B35: =IF($A35="-","",Voo!M7) -> X | C35: =IF($A35="-","",Voo!N7) -> 20+ | D35: =IF($A35="-","",Voo!O7) -> X | E35: =IF($A35="-","",Voo!P7) -> 65+ | F35: =IF($A35="-","",Voo!Q7) -> 11 | G35: =IF($A35="-","",Voo!R7) -> VOOcorder | H35: =IF($A35="-","",Voo!S7) -> X | I35: =IF($A35="-","",Voo!T7) -> 30M | J35: =IF($A35="-","",Voo!U7) -> 100G | K35: =IF($A35="-","",Voo!V7) -> - | L35: =IF($A35="-","",Voo!W7) -> - | M35: =IF($A35="-","",Voo!X7) -> -
A36: =Voo!L8 -> Duo TV NET "Beaucoup" | B36: =IF($A36="-","",Voo!M8) -> X | C36: =IF($A36="-","",Voo!N8) -> 20+ | D36: =IF($A36="-","",Voo!O8) -> X | E36: =IF($A36="-","",Voo!P8) -> 65+ | F36: =IF($A36="-","",Voo!Q8) -> 11 | G36: =IF($A36="-","",Voo!R8) -> VOOcorder | H36: =IF($A36="-","",Voo!S8) -> X | I36: =IF($A36="-","",Voo!T8) -> 40M | J36: =IF($A36="-","",Voo!U8) -> Illimité | K36: =IF($A36="-","",Voo!V8) -> - | L36: =IF($A36="-","",Voo!W8) -> - | M36: =IF($A36="-","",Voo!X8) -> -
A37: =Voo!L9 -> Duo TV NET "Passionnement" | B37: =IF($A37="-","",Voo!M9) -> X | C37: =IF($A37="-","",Voo!N9) -> 20+ | D37: =IF($A37="-","",Voo!O9) -> X | E37: =IF($A37="-","",Voo!P9) -> 65+ | F37: =IF($A37="-","",Voo!Q9) -> 11 | G37: =IF($A37="-","",Voo!R9) -> VOOcorder | H37: =IF($A37="-","",Voo!S9) -> X | I37: =IF($A37="-","",Voo!T9) -> 50M | J37: =IF($A37="-","",Voo!U9) -> Illimité | K37: =IF($A37="-","",Voo!V9) -> - | L37: =IF($A37="-","",Voo!W9) -> - | M37: =IF($A37="-","",Voo!X9) -> VooFoot
A38: =Voo!L10 -> Duo TV NET "A la folie" | B38: =IF($A38="-","",Voo!M10) -> X | C38: =IF($A38="-","",Voo!N10) -> 20+ | D38: =IF($A38="-","",Voo!O10) -> X | E38: =IF($A38="-","",Voo!P10) -> 65+ | F38: =IF($A38="-","",Voo!Q10) -> 11 | G38: =IF($A38="-","",Voo!R10) -> VOOcorder | H38: =IF($A38="-","",Voo!S10) -> X | I38: =IF($A38="-","",Voo!T10) -> 70M | J38: =IF($A38="-","",Voo!U10) -> Illimité | K38: =IF($A38="-","",Voo!V10) -> - | L38: =IF($A38="-","",Voo!W10) -> - | M38: =IF($A38="-","",Voo!X10) -> VooFoot
A39: =Voo!L11 -> Duo TV NET "Fiber 100" | B39: =IF($A39="-","",Voo!M11) -> X | C39: =IF($A39="-","",Voo!N11) -> 20+ | D39: =IF($A39="-","",Voo!O11) -> X | E39: =IF($A39="-","",Voo!P11) -> 65+ | F39: =IF($A39="-","",Voo!Q11) -> 11 | G39: =IF($A39="-","",Voo!R11) -> VOOcorder | H39: =IF($A39="-","",Voo!S11) -> X | I39: =IF($A39="-","",Voo!T11) -> 100M | J39: =IF($A39="-","",Voo!U11) -> Illimité | K39: =IF($A39="-","",Voo!V11) -> - | L39: =IF($A39="-","",Voo!W11) -> - | M39: =IF($A39="-","",Voo!X11) -> VooFoot
A40: =Voo!L12 -> - | B40: =IF($A40="-","",Voo!M12) ->  | C40: =IF($A40="-","",Voo!N12) ->  | D40: =IF($A40="-","",Voo!O12) ->  | E40: =IF($A40="-","",Voo!P12) ->  | F40: =IF($A40="-","",Voo!Q12) ->  | G40: =IF($A40="-","",Voo!R12) ->  | H40: =IF($A40="-","",Voo!S12) ->  | I40: =IF($A40="-","",Voo!T12) ->  | J40: =IF($A40="-","",Voo!U12) ->  | K40: =IF($A40="-","",Voo!V12) ->  | L40: =IF($A40="-","",Voo!W12) ->  | M40: =IF($A40="-","",Voo!X12) -> 
A41: =Voo!L13 -> - | B41: =IF($A41="-","",Voo!M13) ->  | C41: =IF($A41="-","",Voo!N13) ->  | D41: =IF($A41="-","",Voo!O13) ->  | E41: =IF($A41="-","",Voo!P13) ->  | F41: =IF($A41="-","",Voo!Q13) ->  | G41: =IF($A41="-","",Voo!R13) ->  | H41: =IF($A41="-","",Voo!S13) ->  | I41: =IF($A41="-","",Voo!T13) ->  | J41: =IF($A41="-","",Voo!U13) ->  | K41: =IF($A41="-","",Voo!V13) ->  | L41: =IF($A41="-","",Voo!W13) ->  | M41: =IF($A41="-","",Voo!X13) -> 
A42: =Voo!L14 -> - | B42: =IF($A42="-","",Voo!M14) ->  | C42: =IF($A42="-","",Voo!N14) ->  | D42: =IF($A42="-","",Voo!O14) ->  | E42: =IF($A42="-","",Voo!P14) ->  | F42: =IF($A42="-","",Voo!Q14) ->  | G42: =IF($A42="-","",Voo!R14) ->  | H42: =IF($A42="-","",Voo!S14) ->  | I42: =IF($A42="-","",Voo!T14) ->  | J42: =IF($A42="-","",Voo!U14) ->  | K42: =IF($A42="-","",Voo!V14) ->  | L42: =IF($A42="-","",Voo!W14) ->  | M42: =IF($A42="-","",Voo!X14) -> 
A43: =Voo!L15 -> - | B43: =IF($A43="-","",Voo!M15) ->  | C43: =IF($A43="-","",Voo!N15) ->  | D43: =IF($A43="-","",Voo!O15) ->  | E43: =IF($A43="-","",Voo!P15) ->  | F43: =IF($A43="-","",Voo!Q15) ->  | G43: =IF($A43="-","",Voo!R15) ->  | H43: =IF($A43="-","",Voo!S15) ->  | I43: =IF($A43="-","",Voo!T15) ->  | J43: =IF($A43="-","",Voo!U15) ->  | K43: =IF($A43="-","",Voo!V15) ->  | L43: =IF($A43="-","",Voo!W15) ->  | M43: =IF($A43="-","",Voo!X15) -> 
A44: =Voo!L16 -> - | B44: =IF($A44="-","",Voo!M16) ->  | C44: =IF($A44="-","",Voo!N16) ->  | D44: =IF($A44="-","",Voo!O16) ->  | E44: =IF($A44="-","",Voo!P16) ->  | F44: =IF($A44="-","",Voo!Q16) ->  | G44: =IF($A44="-","",Voo!R16) ->  | H44: =IF($A44="-","",Voo!S16) ->  | I44: =IF($A44="-","",Voo!T16) ->  | J44: =IF($A44="-","",Voo!U16) ->  | K44: =IF($A44="-","",Voo!V16) ->  | L44: =IF($A44="-","",Voo!W16) ->  | M44: =IF($A44="-","",Voo!X16) -> 

Sheet Overview
A1: Numericable | B1: =TRANSPOSE(Numericable!C5:C16) -> Télédistribution | C1: TV Plus (digital) | D1: Duo TV+Web | E1: Triple Play Extra | F1: Triple Play Max | G1: - | H1: - | I1: - | J1: - | K1: - | L1: - | M1: -
A2: Pack Retail price (VAT incl.) | B2: 17.81 | C2: 27.9 | D2: 39.9 | E2: 55.9 | F2: 69.9
A3: Minus VAT (21%) | B3: -3.090991736 | C3: -4.84214876 | D3: -6.924793388 | E3: -9.701652893 | F3: -12.13140496
A4: Pack Retail price (VAT excl.) | B4: 14.71900826 | C4: 23.05785124 | D4: 32.97520661 | E4: 46.19834711 | F4: 57.76859504
A5: Share of (TV+BB+Rights) | B5: 1 | C5: 1 | D5: 1 | E5: 0.7903018438 | F5: 0.7119106684
A6: 2P equiv. Pack Retail price (VAT excl.) | B6: 14.71900826 | C6: 23.05785124 | D6: 32.97520661 | E6: 36.5106389 | F6: 41.12607911
A7: Minus TV Rights (TVA excl.) | B7: -3.305785124 | C7: -4.049586777 | D7: -4.049586777 | E7: -4.049586777 | F7: -4.049586777
A8: Minus application base (VAT excl.) | B8: 11.41322314 | C8: 19.00826446 | D8: 28.92561983 | E8: 32.46105212 | F8: 37.07649233
A9: Minus "Minus" | B9: -0.2 | C9: -0.2 | D9: -0.2 | E9: -0.2 | F9: -0.2
A10: Wholesale tariff (VAT excl.) | B10: 9.130578512 | C10: 15.20661157 | D10: 23.14049587 | E10: 25.9688417 | F10: 29.66119386
A12: Telenet | B12: =TRANSPOSE(Telenet!C5:C16) -> TV Analogique | C12: TV Digitale | D12: Whop | E12: Whoppa | F12: - | G12: - | H12: - | I12: - | J12: - | K12: - | L12: - | M12: -
A13: Pack Retail price (VAT incl.) | B13: 15.2 | C13: 23.4 | D13: 61.45 | E13: 71.7
A14: Minus VAT (21%) | B14: -2.638016529 | C14: -4.061157025 | D14: -10.66487603 | E14: -12.44380165
A15: Pack Retail price (VAT excl.) | B15: 12.56198347 | C15: 19.33884298 | D15: 50.78512397 | E15: 59.25619835
A16: Share of (TV+BB+Rights) | B16: 1 | C16: 1 | D16: 0.7771252292 | E16: 0.8172841356
A17: 2P equiv. Pack Retail price (VAT excl.) | B17: 12.56198347 | C17: 19.33884298 | D17: 39.4664011 | E17: 48.42915085
A18: Minus TV Rights (TVA excl.) | B18: -2.628099174 | C18: -2.628099174 | D18: -2.628099174 | E18: -2.628099174
A19: Minus application base (VAT excl.) | B19: 9.933884298 | C19: 16.7107438 | D19: 36.83830193 | E19: 45.80105167
A20: Minus "Minus" | B20: -0.3 | C20: -0.3 | D20: -0.23 | E20: -0.23
A21: Wholesale tariff (VAT excl.) | B21: 6.953719008 | C21: 11.69752066 | D21: 28.36549249 | E21: 35.26680979
A23: Voo | B23: =TRANSPOSE(Voo!C5:C16) -> TV Analogique | C23: TV Numérique Interactive | D23: Duo TV NET "Un peu" | E23: Duo TV NET "Beaucoup" | F23: Duo TV NET "Passionnement" | G23: Duo TV NET "A la folie" | H23: Duo TV NET "Fiber 100" | I23: - | J23: - | K23: - | L23: - | M23: -
A24: Pack Retail price (VAT incl.) | B24: 16.86 | C24: 22.95 | D24: 40.95 | E24: 50.95 | F24: 60.95 | G24: 70.95 | H24: 90.95
A25: Minus VAT (21%) | B25: -2.926115702 | C25: -3.983057851 | D25: -7.107024793 | E25: -8.842561983 | F25: -10.57809917 | G25: -12.31363636 | H25: -15.78471074
A26: Pack Retail price (VAT excl.) | B26: 13.9338843 | C26: 18.96694215 | D26: 33.84297521 | E26: 42.10743802 | F26: 50.37190083 | G26: 58.63636364 | H26: 75.16528926
A27: Share of (TV+BB+Rights) | B27: 1 | C27: 1 | D27: 1 | E27: 1 | F27: 0.8645689695 | G27: 0.8794517099 | H27: 0.9012681688
A28: 2P equiv. Pack Retail price (VAT excl.) | B28: 13.9338843 | C28: 18.96694215 | D28: 33.84297521 | E28: 42.10743802 | F28: 43.54998239 | G28: 51.56785026 | H28: 67.7440826
A29: Minus TV Rights (TVA excl.) | B29: -2.801652893 | C29: -2.801652893 | D29: -2.801652893 | E29: -2.801652893 | F29: -2.801652893 | G29: -2.801652893 | H29: -2.801652893
A30: Minus application base (VAT excl.) | B30: 11.1322314 | C30: 16.16528926 | D30: 31.04132231 | E30: 39.30578512 | F30: 40.74832949 | G30: 48.76619737 | H30: 64.94242971
A31: Minus "Minus" | B31: -0.3 | C31: -0.3 | D31: -0.23 | E31: -0.23 | F31: -0.23 | G31: -0.23 | H31: -0.23
A32: Wholesale tariff (VAT excl.) | B32: 7.792561983 | C32: 11.31570248 | D32: 23.90181818 | E32: 30.26545455 | F32: 31.37621371 | G32: 37.54997197 | H32: 50.00567088

Sheet Lists
A2: Operators | B2: Numericable
B3: Voo - Brutele
B4: Voo - Tecteo
B5: Telenet | C5: operators
A8: Offer types | B8: Analog TV | C8: Analog TV
B9: Digital TV | C9: Digital TV
B10: Dual play | C10: Pack
B11: Triple play | C11: Pack
B12: offer.types | C12: offer.types.minus
A14: Service components | B14: Analog TV
B15: Digital TV
B16: Decoder
B17: TV Rights
B18: Broadband
B19: Telephony
B20: Extra | C20: service.components
C22: Numericable | D22: Telenet | E22: Voo
A23: Minus | B23: Analog TV | C23: =Cover!C17 -> 0.2 | D23: =Cover!C21 -> 0.3 | E23: =Cover!C25 -> 0.3
B24: Digital TV | C24: =Cover!C18 -> 0.2 | D24: =Cover!C22 -> 0.3 | E24: =Cover!C26 -> 0.3
B25: Pack | C25: =Cover!C19 -> 0.2 | D25: =Cover!C23 -> 0.23 | E25: =Cover!C27 -> 0.23
B26: minus.name | C26: minus.val.numericable
